[Event "Titled Tuesday Blitz April 25 Late 2023"]
[White "Govender, Kaedan"]
[Black "Hoffmann, Asa"]
[WhiteFideId "14322072"]
[BlackFideId "2001470"]
[WhiteElo "1288"]
[BlackElo "2117"]
[Result "0-1"]
[Round "03"]
[TimeControl "180+2"]
[Date "2023.04.25"]
[WhiteClock "0:01:01"]
[BlackClock "0:01:39"]

1. d4 {[%clk 0:02:38]}  Nf6 {[%clk 0:02:59]} 2. c4 {[%clk 0:02:34]}  c5 {[%clk 0:02:58]} 3. d5 {[%clk 0:02:31]}  e5 {[%clk 0:02:58]} 4. dxe6 {[%clk 0:02:31]}  fxe6 {[%clk 0:02:58]} 5. Nf3 {[%clk 0:02:30]}  d5 {[%clk 0:02:58]} 6. cxd5 {[%clk 0:02:28]}  exd5 {[%clk 0:02:57]} 7. Bg5 {[%clk 0:02:29]}  Be7 {[%clk 0:02:53]} 8. e3 {[%clk 0:02:27]}  Nc6 {[%clk 0:02:52]} 9. Be2 {[%clk 0:02:26]}  Be6 {[%clk 0:02:50]} 10. O-O {[%clk 0:02:26]}  O-O {[%clk 0:02:50]} 11. Nc3 {[%clk 0:02:24]}  h6 {[%clk 0:02:49]} 12. Bh4 {[%clk 0:02:23]}  a6 {[%clk 0:02:48]} 13. a3 {[%clk 0:02:22]}  d4 {[%clk 0:02:48]} 14. exd4 {[%clk 0:02:22]}  cxd4 {[%clk 0:02:48]} 15. Nb1 {[%clk 0:02:19]}  Rc8 {[%clk 0:02:39]} 16. Bd3 {[%clk 0:02:17]}  Qb6 {[%clk 0:02:35]} 17. b4 {[%clk 0:02:16]}  Rfd8 {[%clk 0:02:24]} 18. Re1 {[%clk 0:02:14]}  Bd5 {[%clk 0:02:21]} 19. Nbd2 {[%clk 0:02:13]}  Re8 {[%clk 0:02:18]} 20. Ne5 {[%clk 0:02:07]}  Nxe5 {[%clk 0:02:11]} 21. Rxe5 {[%clk 0:02:08]}  Bf7 {[%clk 0:02:10]} 22. Nf3 {[%clk 0:01:59]}  Qc7 {[%clk 0:02:06]} 23. Qe2 {[%clk 0:01:52]}  Bd6 {[%clk 0:01:58]} 24. Rxe8+ {[%clk 0:01:45]}  Rxe8 {[%clk 0:01:57]} 25. Qb2 {[%clk 0:01:45]}  Qc3 {[%clk 0:01:52]} 26. Qxc3 {[%clk 0:01:36]}  dxc3 {[%clk 0:01:52]} 27. Rc1 {[%clk 0:01:33]}  Rc8 {[%clk 0:01:51]} 28. Bc2 {[%clk 0:01:26]}  Nd5 {[%clk 0:01:46]} 29. Nd4 {[%clk 0:01:22]}  a5 {[%clk 0:01:43]} 30. Nf5 {[%clk 0:01:21]}  Bf8 {[%clk 0:01:43]} 31. bxa5 {[%clk 0:01:00]}  Bxa3 {[%clk 0:01:41]} 32. Ne3 {[%clk 0:01:01]}  Bxc1 {[%clk 0:01:39]} 0-1


[Site "https://www.chess.com"]

[Event "Titled Tuesday Blitz April 25 Late 2023"]
[White "Van Foreest, Machteld"]
[Black "Aqib Javaid Butt"]
[WhiteFideId "1051563"]
[BlackFideId "7801262"]
[WhiteElo "2018"]
[BlackElo "1659"]
[Result "1-0"]
[Round "03"]
[TimeControl "180+2"]
[Date "2023.04.25"]
[WhiteClock "0:00:10"]
[BlackClock "0:01:03"]

1. e4 {[%clk 0:03:00]}  c6 {[%clk 0:02:58]} 2. d4 {[%clk 0:02:59]}  d5 {[%clk 0:02:59]} 3. e5 {[%clk 0:02:59]}  Bf5 {[%clk 0:02:59]} 4. h4 {[%clk 0:02:59]}  h5 {[%clk 0:02:59]} 5. Bd3 {[%clk 0:02:58]}  Bxd3 {[%clk 0:02:58]} 6. Qxd3 {[%clk 0:02:59]}  e6 {[%clk 0:02:59]} 7. Bg5 {[%clk 0:02:59]}  Be7 {[%clk 0:02:59]} 8. Nf3 {[%clk 0:02:55]}  Nh6 {[%clk 0:02:59]} 9. c4 {[%clk 0:02:45]}  Nf5 {[%clk 0:02:59]} 10. Nc3 {[%clk 0:02:45]}  Nd7 {[%clk 0:02:58]} 11. cxd5 {[%clk 0:02:35]}  cxd5 {[%clk 0:02:54]} 12. Nxd5 {[%clk 0:02:30]}  Nxe5 {[%clk 0:02:49]} 13. Qb5+ {[%clk 0:02:09]}  Kf8 {[%clk 0:02:13]} 14. dxe5 {[%clk 0:01:19]}  Qxd5 {[%clk 0:02:11]} 15. Qxd5 {[%clk 0:01:17]}  exd5 {[%clk 0:02:12]} 16. O-O-O {[%clk 0:01:12]}  Bxg5+ {[%clk 0:02:07]} 17. hxg5 {[%clk 0:01:13]}  Rd8 {[%clk 0:02:02]} 18. Nd4 {[%clk 0:01:12]}  Nxd4 {[%clk 0:02:02]} 19. Rxd4 {[%clk 0:01:13]}  Ke7 {[%clk 0:02:02]} 20. Kd2 {[%clk 0:00:56]}  Ke6 {[%clk 0:02:03]} 21. f4 {[%clk 0:00:56]}  Kf5 {[%clk 0:02:02]} 22. Ke3 {[%clk 0:00:55]}  h4 {[%clk 0:01:58]} 23. Rc1 {[%clk 0:00:54]}  h3 {[%clk 0:01:58]} 24. gxh3 {[%clk 0:00:32]}  Rxh3+ {[%clk 0:01:59]} 25. Kf2 {[%clk 0:00:25]}  Rdh8 {[%clk 0:01:37]} 26. Rxd5 {[%clk 0:00:19]}  Ke4 {[%clk 0:01:37]} 27. Rcd1 {[%clk 0:00:11]}  Rh2+ {[%clk 0:01:35]} 28. Kg1 {[%clk 0:00:12]}  Rh1+ {[%clk 0:01:35]} 29. Kg2 {[%clk 0:00:12]}  R8h2+ {[%clk 0:01:35]} 30. Kg3 {[%clk 0:00:13]}  Rh3+ {[%clk 0:01:32]} 31. Kg4 {[%clk 0:00:12]}  Rh4+ {[%clk 0:01:27]} 32. Kg3 {[%clk 0:00:12]}  R1h3+ {[%clk 0:01:24]} 33. Kg2 {[%clk 0:00:12]}  Kxf4 {[%clk 0:01:18]} 34. R1d4+ {[%clk 0:00:09]}  Kxg5 {[%clk 0:01:17]} 35. e6+ {[%clk 0:00:08]}  Kf6 {[%clk 0:01:16]} 36. exf7 {[%clk 0:00:08]}  Kxf7 {[%clk 0:01:17]} 37. Rxh4 {[%clk 0:00:08]}  Rxh4 {[%clk 0:01:16]} 38. Rd7+ {[%clk 0:00:09]}  Kf6 {[%clk 0:01:17]} 39. Rxb7 {[%clk 0:00:10]}  Ra4 {[%clk 0:01:17]} 40. a3 {[%clk 0:00:10]}  g5 {[%clk 0:01:16]} 41. Kf3 {[%clk 0:00:11]}  a5 {[%clk 0:01:10]} 42. Rb6+ {[%clk 0:00:10]}  Kf5 {[%clk 0:01:09]} 43. Rb5+ {[%clk 0:00:11]}  Kg6 {[%clk 0:01:08]} 44. Kg3 {[%clk 0:00:10]}  Kh5 {[%clk 0:01:07]} 45. Kh3 {[%clk 0:00:10]}  Rh4+ {[%clk 0:01:07]} 46. Kg3 {[%clk 0:00:11]}  a4 {[%clk 0:01:08]} 47. Rb4 {[%clk 0:00:10]}  Rxb4 {[%clk 0:01:01]} 48. axb4 {[%clk 0:00:11]}  Kg6 {[%clk 0:01:02]} 49. b5 {[%clk 0:00:10]}  Kf6 {[%clk 0:01:02]} 50. b6 {[%clk 0:00:10]}  Ke7 {[%clk 0:01:03]} 51. b7 {[%clk 0:00:10]} 1-0


[Site "https://www.chess.com"]

[Event "Titled Tuesday Blitz April 25 Late 2023"]
[White "Lutz, Igor Oscar"]
[Black "Luukkonen, Tommi"]
[WhiteFideId "2110806"]
[BlackFideId "501808"]
[WhiteElo "1969"]
[BlackElo "2296"]
[Result "0-1"]
[Round "03"]
[TimeControl "180+2"]
[Date "2023.04.25"]
[WhiteClock "0:00:47"]
[BlackClock "0:00:23"]

1. d4 {[%clk 0:03:00]}  Nf6 {[%clk 0:02:42]} 2. c4 {[%clk 0:03:00]}  c5 {[%clk 0:02:39]} 3. d5 {[%clk 0:03:00]}  g6 {[%clk 0:02:38]} 4. Nc3 {[%clk 0:02:59]}  Bg7 {[%clk 0:02:39]} 5. e4 {[%clk 0:03:00]}  d6 {[%clk 0:02:39]} 6. Nf3 {[%clk 0:02:59]}  O-O {[%clk 0:02:38]} 7. Be2 {[%clk 0:02:58]}  e6 {[%clk 0:02:39]} 8. h3 {[%clk 0:02:58]}  exd5 {[%clk 0:02:32]} 9. exd5 {[%clk 0:02:52]}  Re8 {[%clk 0:02:31]} 10. O-O {[%clk 0:02:52]}  Na6 {[%clk 0:02:29]} 11. Bg5 {[%clk 0:02:49]}  h6 {[%clk 0:02:27]} 12. Bh4 {[%clk 0:02:48]}  g5 {[%clk 0:02:26]} 13. Bg3 {[%clk 0:02:49]}  Ne4 {[%clk 0:02:26]} 14. Nxe4 {[%clk 0:02:47]}  Rxe4 {[%clk 0:02:27]} 15. Bd3 {[%clk 0:02:43]}  Re8 {[%clk 0:02:26]} 16. a3 {[%clk 0:02:40]}  Bxb2 {[%clk 0:02:22]} 17. Ra2 {[%clk 0:02:38]}  Bg7 {[%clk 0:02:21]} 18. Qc2 {[%clk 0:02:34]}  Nc7 {[%clk 0:02:13]} 19. Bh7+ {[%clk 0:02:30]}  Kh8 {[%clk 0:02:11]} 20. Qd3 {[%clk 0:02:21]}  a6 {[%clk 0:02:08]} 21. Re1 {[%clk 0:02:13]}  Rxe1+ {[%clk 0:02:06]} 22. Nxe1 {[%clk 0:02:14]}  b5 {[%clk 0:02:04]} 23. cxb5 {[%clk 0:02:02]}  axb5 {[%clk 0:02:04]} 24. Re2 {[%clk 0:02:02]}  c4 {[%clk 0:01:57]} 25. Qc2 {[%clk 0:01:52]}  Nxd5 {[%clk 0:01:38]} 26. Bxd6 {[%clk 0:01:50]}  Qxd6 {[%clk 0:01:26]} 27. Re8+ {[%clk 0:01:49]}  Bf8 {[%clk 0:01:26]} 28. Qb2+ {[%clk 0:01:40]}  c3 {[%clk 0:01:26]} 29. Qxb5 {[%clk 0:01:40]}  Bd7 {[%clk 0:01:15]} 30. Rxf8+ {[%clk 0:01:38]}  Rxf8 {[%clk 0:01:08]} 31. Qd3 {[%clk 0:01:36]}  Qe5 {[%clk 0:01:00]} 32. Nf3 {[%clk 0:01:33]}  Qe6 {[%clk 0:00:47]} 33. Be4 {[%clk 0:01:25]}  Nf6 {[%clk 0:00:41]} 34. Qxc3 {[%clk 0:01:19]}  Rc8 {[%clk 0:00:37]} 35. Qb2 {[%clk 0:01:13]}  Kg8 {[%clk 0:00:34]} 36. Bc2 {[%clk 0:01:06]}  Bc6 {[%clk 0:00:32]} 37. Bb3 {[%clk 0:01:02]}  Qd6 {[%clk 0:00:27]} 38. Qb1 {[%clk 0:00:57]}  Kg7 {[%clk 0:00:24]} 39. h4 {[%clk 0:00:56]}  Bxf3 {[%clk 0:00:23]} 40. gxf3 {[%clk 0:00:50]}  Qf4 {[%clk 0:00:23]} 41. hxg5 {[%clk 0:00:47]}  Rc1+ {[%clk 0:00:23]} 0-1


[Site "https://www.chess.com"]

[Event "Titled Tuesday Blitz April 25 Late 2023"]
[White "Allahverdiyeva, Ayan"]
[Black "Fuentes Godoy, Lilia Ivonne"]
[WhiteFideId "13412590"]
[BlackFideId "5104130"]
[WhiteElo "1980"]
[BlackElo "2096"]
[Result "0-1"]
[Round "03"]
[TimeControl "180+2"]
[Date "2023.04.25"]
[WhiteClock "0:00:24"]
[BlackClock "0:01:07"]

1. e4 {[%clk 0:03:00]}  c6 {[%clk 0:02:59]} 2. d4 {[%clk 0:03:00]}  d5 {[%clk 0:03:00]} 3. e5 {[%clk 0:03:00]}  Bf5 {[%clk 0:03:00]} 4. h4 {[%clk 0:03:00]}  h5 {[%clk 0:02:54]} 5. Bd3 {[%clk 0:02:59]}  Bxd3 {[%clk 0:02:54]} 6. Qxd3 {[%clk 0:02:59]}  e6 {[%clk 0:02:52]} 7. Nf3 {[%clk 0:02:58]}  Qa5+ {[%clk 0:02:49]} 8. Nbd2 {[%clk 0:02:53]}  Qa6 {[%clk 0:02:47]} 9. c4 {[%clk 0:02:44]}  Ne7 {[%clk 0:02:46]} 10. b3 {[%clk 0:02:43]}  Nd7 {[%clk 0:02:44]} 11. a4 {[%clk 0:02:39]}  Nf5 {[%clk 0:02:36]} 12. O-O {[%clk 0:02:35]}  Be7 {[%clk 0:02:34]} 13. Ba3 {[%clk 0:02:34]}  Bxa3 {[%clk 0:02:21]} 14. Rxa3 {[%clk 0:02:34]}  Qb6 {[%clk 0:02:12]} 15. c5 {[%clk 0:02:13]}  Qd8 {[%clk 0:02:11]} 16. b4 {[%clk 0:02:13]}  Nxh4 {[%clk 0:02:09]} 17. Nxh4 {[%clk 0:02:13]}  Qxh4 {[%clk 0:02:10]} 18. b5 {[%clk 0:02:13]}  Qg5 {[%clk 0:01:44]} 19. bxc6 {[%clk 0:02:09]}  bxc6 {[%clk 0:01:45]} 20. Nf3 {[%clk 0:02:09]}  Qg4 {[%clk 0:01:39]} 21. Qa6 {[%clk 0:02:05]}  h4 {[%clk 0:01:24]} 22. Qxc6 {[%clk 0:01:43]}  Rb8 {[%clk 0:01:24]} 23. Qa6 {[%clk 0:01:14]}  h3 {[%clk 0:01:21]} 24. Ne1 {[%clk 0:01:13]}  hxg2 {[%clk 0:01:09]} 25. Nxg2 {[%clk 0:01:05]}  Qh5 {[%clk 0:01:09]} 26. Rd1 {[%clk 0:00:24]}  Qh1# {[%clk 0:01:07]} 0-1


[Site "https://www.chess.com"]

[Event "Titled Tuesday Blitz April 25 Late 2023"]
[White "Vargas, Mauricio"]
[Black "Freile Martin, Javier"]
[WhiteFideId "4404572"]
[BlackFideId "3600165"]
[WhiteElo "1998"]
[BlackElo "2320"]
[Result "0-1"]
[Round "03"]
[TimeControl "180+2"]
[Date "2023.04.25"]
[WhiteClock "0:00:01"]
[BlackClock "0:02:26"]

1. e4 {[%clk 0:02:27]}  c5 {[%clk 0:02:58]} 2. Nf3 {[%clk 0:02:25]}  d6 {[%clk 0:02:58]} 3. d4 {[%clk 0:02:26]}  cxd4 {[%clk 0:02:58]} 4. Nxd4 {[%clk 0:02:26]}  Nf6 {[%clk 0:02:58]} 5. Nc3 {[%clk 0:02:26]}  Nc6 {[%clk 0:02:59]} 6. Be3 {[%clk 0:02:23]}  Ng4 {[%clk 0:02:57]} 7. Nxc6 {[%clk 0:02:17]}  bxc6 {[%clk 0:02:55]} 8. Bf4 {[%clk 0:02:14]}  Qb6 {[%clk 0:02:54]} 9. Qd2 {[%clk 0:01:51]}  Qxb2 {[%clk 0:02:52]} 10. Rb1 {[%clk 0:01:50]}  Qa3 {[%clk 0:02:52]} 11. f3 {[%clk 0:01:44]}  Nf6 {[%clk 0:02:48]} 12. Bc4 {[%clk 0:01:43]}  e5 {[%clk 0:02:46]} 13. Bg5 {[%clk 0:01:30]}  Be7 {[%clk 0:02:45]} 14. O-O {[%clk 0:01:26]}  Qc5+ {[%clk 0:02:44]} 15. Be3 {[%clk 0:01:25]}  Qxc4 {[%clk 0:02:44]} 16. Rb3 {[%clk 0:01:17]}  Qa6 {[%clk 0:02:42]} 17. Rfb1 {[%clk 0:01:16]}  O-O {[%clk 0:02:40]} 18. Kh1 {[%clk 0:01:06]}  Be6 {[%clk 0:02:39]} 19. Rb7 {[%clk 0:01:02]}  Rfe8 {[%clk 0:02:38]} 20. Rc7 {[%clk 0:00:41]}  d5 {[%clk 0:02:35]} 21. exd5 {[%clk 0:00:20]}  cxd5 {[%clk 0:02:34]} 22. Bf2 {[%clk 0:00:11]}  d4 {[%clk 0:02:32]} 23. Ne4 {[%clk 0:00:10]}  Nxe4 {[%clk 0:02:32]} 24. fxe4 {[%clk 0:00:10]}  Bd6 {[%clk 0:02:31]} 25. Rcb7 {[%clk 0:00:06]}  Qxa2 {[%clk 0:02:30]} 26. R7b2 {[%clk 0:00:04]}  Qc4 {[%clk 0:02:29]} 27. Qg5 {[%clk 0:00:03]}  f6 {[%clk 0:02:28]} 28. Qh4 {[%clk 0:00:01]}  Rab8 {[%clk 0:02:26]} 0-1


[Site "https://www.chess.com"]

[Event "Titled Tuesday Blitz April 25 Late 2023"]
[White "Kevlishvili, Robby"]
[Black "Vachier-Lagrave, Maxime"]
[WhiteFideId "1040634"]
[BlackFideId "623539"]
[WhiteElo "2572"]
[BlackElo "2740"]
[Result "1-0"]
[Round "04"]
[TimeControl "180+2"]
[Date "2023.04.25"]
[WhiteClock "0:00:11"]
[BlackClock "0:00:03"]

1. e4 {[%clk 0:03:00]}  c5 {[%clk 0:02:56]} 2. Nf3 {[%clk 0:03:01]}  Nc6 {[%clk 0:02:56]} 3. d4 {[%clk 0:03:00]}  cxd4 {[%clk 0:02:57]} 4. Nxd4 {[%clk 0:03:00]}  Nf6 {[%clk 0:02:57]} 5. Nc3 {[%clk 0:03:01]}  e5 {[%clk 0:02:57]} 6. Ndb5 {[%clk 0:03:01]}  d6 {[%clk 0:02:58]} 7. Bg5 {[%clk 0:03:01]}  a6 {[%clk 0:02:57]} 8. Na3 {[%clk 0:03:01]}  Be6 {[%clk 0:02:57]} 9. Nc4 {[%clk 0:02:59]}  Rc8 {[%clk 0:02:56]} 10. Ne3 {[%clk 0:02:52]}  Nd4 {[%clk 0:02:54]} 11. Bd3 {[%clk 0:02:51]}  Be7 {[%clk 0:02:53]} 12. Bxf6 {[%clk 0:02:47]}  Bxf6 {[%clk 0:02:52]} 13. Ncd5 {[%clk 0:02:48]}  Bg5 {[%clk 0:02:50]} 14. c3 {[%clk 0:02:48]}  Nc6 {[%clk 0:02:35]} 15. Be2 {[%clk 0:02:39]}  g6 {[%clk 0:02:19]} 16. Bg4 {[%clk 0:02:30]}  h5 {[%clk 0:02:18]} 17. Be2 {[%clk 0:02:21]}  O-O {[%clk 0:02:15]} 18. h4 {[%clk 0:02:18]}  Bh6 {[%clk 0:01:53]} 19. g4 {[%clk 0:02:14]}  Kh8 {[%clk 0:01:46]} 20. g5 {[%clk 0:02:08]}  Bg7 {[%clk 0:01:45]} 21. Bxh5 {[%clk 0:02:09]}  Ne7 {[%clk 0:01:24]} 22. Bg4 {[%clk 0:02:01]}  Nxd5 {[%clk 0:01:19]} 23. Nxd5 {[%clk 0:01:53]}  Rc4 {[%clk 0:01:19]} 24. Qd3 {[%clk 0:01:37]}  Rc5 {[%clk 0:00:54]} 25. Ne3 {[%clk 0:01:16]}  Bxg4 {[%clk 0:00:49]} 26. Nxg4 {[%clk 0:01:17]}  d5 {[%clk 0:00:43]} 27. h5 {[%clk 0:01:16]}  Qxg5 {[%clk 0:00:43]} 28. hxg6+ {[%clk 0:01:16]}  Kg8 {[%clk 0:00:44]} 29. Ne3 {[%clk 0:01:09]}  d4 {[%clk 0:00:41]} 30. Nd5 {[%clk 0:00:46]}  fxg6 {[%clk 0:00:38]} 31. Qh3 {[%clk 0:00:44]}  Re8 {[%clk 0:00:26]} 32. Ke2 {[%clk 0:00:32]}  Rxd5 {[%clk 0:00:22]} 33. exd5 {[%clk 0:00:32]}  e4 {[%clk 0:00:23]} 34. Rag1 {[%clk 0:00:29]}  d3+ {[%clk 0:00:20]} 35. Kd1 {[%clk 0:00:29]}  Qf6 {[%clk 0:00:20]} 36. Qh7+ {[%clk 0:00:18]}  Kf7 {[%clk 0:00:20]} 37. Qh4 {[%clk 0:00:11]}  Qf3+ {[%clk 0:00:16]} 38. Kc1 {[%clk 0:00:12]}  Qe2 {[%clk 0:00:12]} 39. Qf4+ {[%clk 0:00:12]}  Kg8 {[%clk 0:00:12]} 40. Qd2 {[%clk 0:00:12]}  Qf3 {[%clk 0:00:12]} 41. Rh2 {[%clk 0:00:12]}  e3 {[%clk 0:00:06]} 42. fxe3 {[%clk 0:00:12]}  Rxe3 {[%clk 0:00:07]} 43. Rhg2 {[%clk 0:00:12]}  Re2 {[%clk 0:00:07]} 44. Rxe2 {[%clk 0:00:12]}  dxe2 {[%clk 0:00:08]} 45. Re1 {[%clk 0:00:12]}  Qh3 {[%clk 0:00:03]} 46. Qxe2 {[%clk 0:00:12]}  Qf5 {[%clk 0:00:03]} 47. Qe4 {[%clk 0:00:11]} 1-0


[Site "https://www.chess.com"]

[Event "Titled Tuesday Blitz April 25 Late 2023"]
[White "Lazavik, Denis"]
[Black "Fressinet, Laurent"]
[WhiteFideId "13515110"]
[BlackFideId "608742"]
[WhiteElo "2560"]
[BlackElo "2633"]
[Result "1-0"]
[Round "04"]
[TimeControl "180+2"]
[Date "2023.04.25"]
[WhiteClock "0:00:03"]
[BlackClock "0:00:02"]

1. d4 {[%clk 0:03:00]}  Nf6 {[%clk 0:02:59]} 2. c4 {[%clk 0:03:01]}  e6 {[%clk 0:02:59]} 3. Nf3 {[%clk 0:03:02]}  d5 {[%clk 0:02:59]} 4. Nc3 {[%clk 0:03:03]}  Bb4 {[%clk 0:02:58]} 5. Bg5 {[%clk 0:03:01]}  h6 {[%clk 0:02:58]} 6. Bxf6 {[%clk 0:03:01]}  Qxf6 {[%clk 0:02:59]} 7. e3 {[%clk 0:03:02]}  O-O {[%clk 0:02:57]} 8. Rc1 {[%clk 0:03:02]}  c6 {[%clk 0:02:53]} 9. Qb3 {[%clk 0:02:54]}  Bd6 {[%clk 0:02:42]} 10. Bd3 {[%clk 0:02:51]}  Nd7 {[%clk 0:02:41]} 11. O-O {[%clk 0:02:50]}  Qe7 {[%clk 0:02:41]} 12. Bb1 {[%clk 0:02:45]}  a6 {[%clk 0:02:29]} 13. Rfe1 {[%clk 0:02:39]}  f5 {[%clk 0:02:23]} 14. cxd5 {[%clk 0:02:29]}  cxd5 {[%clk 0:02:17]} 15. Ne2 {[%clk 0:02:27]}  Nf6 {[%clk 0:02:11]} 16. Nf4 {[%clk 0:02:26]}  Qe8 {[%clk 0:02:11]} 17. Ne5 {[%clk 0:02:24]}  Nd7 {[%clk 0:01:43]} 18. Nfd3 {[%clk 0:02:06]}  Nxe5 {[%clk 0:01:33]} 19. dxe5 {[%clk 0:02:05]}  Bb8 {[%clk 0:01:31]} 20. f4 {[%clk 0:02:04]}  Qe7 {[%clk 0:01:18]} 21. Kh1 {[%clk 0:02:01]}  Ba7 {[%clk 0:01:16]} 22. Nb4 {[%clk 0:01:51]}  Qd8 {[%clk 0:01:07]} 23. Nc2 {[%clk 0:01:49]}  Qb6 {[%clk 0:01:01]} 24. Qc3 {[%clk 0:01:37]}  Bd7 {[%clk 0:00:59]} 25. Nd4 {[%clk 0:01:37]}  Rac8 {[%clk 0:00:56]} 26. Qd2 {[%clk 0:01:38]}  Rxc1 {[%clk 0:00:49]} 27. Rxc1 {[%clk 0:01:37]}  Rc8 {[%clk 0:00:49]} 28. Rg1 {[%clk 0:01:37]}  Qc7 {[%clk 0:00:40]} 29. h3 {[%clk 0:01:36]}  Rf8 {[%clk 0:00:25]} 30. g4 {[%clk 0:01:34]}  Bxd4 {[%clk 0:00:22]} 31. exd4 {[%clk 0:01:33]}  Qd8 {[%clk 0:00:18]} 32. gxf5 {[%clk 0:01:32]}  exf5 {[%clk 0:00:18]} 33. Rg6 {[%clk 0:01:28]}  Qh4 {[%clk 0:00:16]} 34. Qg2 {[%clk 0:01:09]}  Qe1+ {[%clk 0:00:15]} 35. Kh2 {[%clk 0:00:44]}  Rf7 {[%clk 0:00:13]} 36. Bc2 {[%clk 0:00:41]}  Qe3 {[%clk 0:00:12]} 37. Qf1 {[%clk 0:00:16]}  Bb5 {[%clk 0:00:09]} 38. Qg1 {[%clk 0:00:04]}  Qxf4+ {[%clk 0:00:08]} 39. Rg3 {[%clk 0:00:05]}  Rc7 {[%clk 0:00:08]} 40. Bb3 {[%clk 0:00:05]}  Rc1 {[%clk 0:00:05]} 41. Bxd5+ {[%clk 0:00:04]}  Kh8 {[%clk 0:00:04]} 42. Qe3 {[%clk 0:00:04]}  Qxe3 {[%clk 0:00:03]} 43. Rxe3 {[%clk 0:00:04]}  Rc2+ {[%clk 0:00:03]} 44. Kg3 {[%clk 0:00:04]}  g5 {[%clk 0:00:03]} 45. Rc3 {[%clk 0:00:03]}  Rd2 {[%clk 0:00:02]} 46. Rc8+ {[%clk 0:00:03]}  Kg7 {[%clk 0:00:02]} 47. Rc7+ {[%clk 0:00:04]}  Kf8 {[%clk 0:00:02]} 48. Bxb7 {[%clk 0:00:03]} 1-0


[Site "https://www.chess.com"]

[Event "Titled Tuesday Blitz April 25 Late 2023"]
[White "Quesada Perez, Yasser"]
[Black "Kollars, Dmitrij"]
[WhiteFideId "3509362"]
[BlackFideId "12909572"]
[WhiteElo "2496"]
[BlackElo "2584"]
[Result "1-0"]
[Round "04"]
[TimeControl "180+2"]
[Date "2023.04.25"]
[WhiteClock "0:00:08"]
[BlackClock "0:00:03"]

1. e4 {[%clk 0:03:00]}  e5 {[%clk 0:02:58]} 2. Nf3 {[%clk 0:03:01]}  Nc6 {[%clk 0:02:59]} 3. Nc3 {[%clk 0:03:01]}  Nf6 {[%clk 0:02:58]} 4. Bb5 {[%clk 0:03:02]}  Bb4 {[%clk 0:02:57]} 5. O-O {[%clk 0:03:01]}  O-O {[%clk 0:02:58]} 6. Bxc6 {[%clk 0:03:02]}  dxc6 {[%clk 0:02:56]} 7. d3 {[%clk 0:03:02]}  Nd7 {[%clk 0:02:50]} 8. h3 {[%clk 0:02:58]}  Re8 {[%clk 0:02:50]} 9. Ne2 {[%clk 0:02:58]}  Bf8 {[%clk 0:02:47]} 10. Nh2 {[%clk 0:02:57]}  Nc5 {[%clk 0:02:27]} 11. f4 {[%clk 0:02:47]}  exf4 {[%clk 0:02:28]} 12. Nxf4 {[%clk 0:02:47]}  f5 {[%clk 0:02:19]} 13. e5 {[%clk 0:02:22]}  Ne6 {[%clk 0:01:59]} 14. Nf3 {[%clk 0:02:17]}  c5 {[%clk 0:01:57]} 15. Kh1 {[%clk 0:02:15]}  b6 {[%clk 0:01:50]} 16. b3 {[%clk 0:02:03]}  Nxf4 {[%clk 0:01:42]} 17. Bxf4 {[%clk 0:02:03]}  h6 {[%clk 0:01:43]} 18. Qe1 {[%clk 0:01:58]}  Be6 {[%clk 0:01:38]} 19. h4 {[%clk 0:01:54]}  Qd7 {[%clk 0:01:32]} 20. Qg3 {[%clk 0:01:54]}  Qf7 {[%clk 0:01:25]} 21. Bxh6 {[%clk 0:01:49]}  Qh5 {[%clk 0:01:19]} 22. Bf4 {[%clk 0:01:43]}  Rad8 {[%clk 0:01:16]} 23. Rae1 {[%clk 0:01:42]}  a5 {[%clk 0:01:14]} 24. a4 {[%clk 0:01:42]}  Qg4 {[%clk 0:01:01]} 25. Qxg4 {[%clk 0:01:35]}  fxg4 {[%clk 0:01:01]} 26. Ng5 {[%clk 0:01:36]}  Bd5 {[%clk 0:00:40]} 27. Kh2 {[%clk 0:01:30]}  Be7 {[%clk 0:00:30]} 28. Kg3 {[%clk 0:01:26]}  Bc6 {[%clk 0:00:23]} 29. Re2 {[%clk 0:01:11]}  Rd4 {[%clk 0:00:22]} 30. Bc1 {[%clk 0:01:00]}  b5 {[%clk 0:00:12]} 31. axb5 {[%clk 0:00:57]}  Bxb5 {[%clk 0:00:13]} 32. Ne4 {[%clk 0:00:30]}  a4 {[%clk 0:00:11]} 33. bxa4 {[%clk 0:00:29]}  Bxa4 {[%clk 0:00:11]} 34. Be3 {[%clk 0:00:29]}  Rd5 {[%clk 0:00:11]} 35. Nc3 {[%clk 0:00:28]}  Rxe5 {[%clk 0:00:11]} 36. Nxa4 {[%clk 0:00:22]}  Bd6 {[%clk 0:00:12]} 37. Kf2 {[%clk 0:00:22]}  g3+ {[%clk 0:00:11]} 38. Kf3 {[%clk 0:00:19]}  Rf5+ {[%clk 0:00:10]} 39. Kg4 {[%clk 0:00:14]}  Rxf1 {[%clk 0:00:11]} 40. Nc3 {[%clk 0:00:13]}  Bf4 {[%clk 0:00:09]} 41. Bxf4 {[%clk 0:00:12]}  Rxe2 {[%clk 0:00:09]} 42. Nxe2 {[%clk 0:00:13]}  Rf2 {[%clk 0:00:10]} 43. Nxg3 {[%clk 0:00:11]}  Rxg2 {[%clk 0:00:10]} 44. c4 {[%clk 0:00:10]}  Kf7 {[%clk 0:00:09]} 45. Kf3 {[%clk 0:00:10]}  Rh2 {[%clk 0:00:08]} 46. h5 {[%clk 0:00:10]}  Ke6 {[%clk 0:00:06]} 47. Kg4 {[%clk 0:00:09]}  Kd7 {[%clk 0:00:03]} 48. Ne4 {[%clk 0:00:09]}  Kc6 {[%clk 0:00:03]} 49. Bxh2 {[%clk 0:00:08]} 1-0


[Site "https://www.chess.com"]

[Event "Titled Tuesday Blitz April 25 Late 2023"]
[White "Svane, Rasmus"]
[Black "Bronstein, Or"]
[WhiteFideId "4657101"]
[BlackFideId "2815770"]
[WhiteElo "2597"]
[BlackElo "2356"]
[Result "0-1"]
[Round "04"]
[TimeControl "180+2"]
[Date "2023.04.25"]
[WhiteClock "0:02:36"]
[BlackClock "0:01:46"]

1. Nf3 {[%clk 0:03:00]}  Nf6 {[%clk 0:02:59]} 2. g3 {[%clk 0:03:00]}  g6 {[%clk 0:03:00]} 3. Bg2 {[%clk 0:03:00]}  Bg7 {[%clk 0:03:00]} 4. O-O {[%clk 0:03:01]}  O-O {[%clk 0:03:00]} 5. d4 {[%clk 0:03:01]}  d5 {[%clk 0:02:57]} 6. c4 {[%clk 0:03:01]}  c6 {[%clk 0:02:56]} 7. Qb3 {[%clk 0:03:01]}  Qb6 {[%clk 0:02:50]} 8. Nc3 {[%clk 0:03:01]}  Rd8 {[%clk 0:02:43]} 9. Bd2 {[%clk 0:03:01]}  Na6 {[%clk 0:02:36]} 10. Rfc1 {[%clk 0:02:47]}  dxc4 {[%clk 0:02:32]} 11. Qxc4 {[%clk 0:02:40]}  Be6 {[%clk 0:02:32]} 12. Qa4 {[%clk 0:02:39]}  Bf5 {[%clk 0:01:47]} 13. Qc2 {[%clk 0:02:36]}  Bxc2 {[%clk 0:01:46]} 0-1


[Site "https://www.chess.com"]